Cogmind - Beta 10.2 @@@ ROGUE MODE // 2021.10.26 @ 20:53:07 Player: Wakanaka Result: Destroyed by G-34 Mercenary with Small Laser Performance ------------- Evolutions (0) 0 Regions Visited (2) 400 Robots Destroyed (18) 90 Value Destroyed (385) 385 Prototype IDs (0) 0 Alien Tech Used (0) 0 Bonus (0) 0 TOTAL SCORE: 875 Bonus ------- None Cogmind --------- Core Integrity 0/250 Matter 300/300 Energy 248/250 System Corruption 1% Temperature Cool (6) Movement Rolling (80) Location -10/Mines Parts ------- > --- POWER (1) -------- Ion Engine > --- PROPULSION (2) --- Wheel Wheel > --- UTILITY (2) ------ Improved Terrain Scanner Seismic Analyzer > --- WEAPON (2) ------- (None) > --- INVENTORY (4) ---- Compact Wheel High-capacity Storage Unit Power Shielding Utility Shielding Peak State ------------ > --- POWER ------------ Ion Engine > --- PROPULSION ------- Wheel Wheel > --- UTILITY ---------- Small Storage Unit Improved Terrain Scanner > --- WEAPON ----------- EM Pulse Gun Medium Laser > --- INVENTORY -------- Seismic Analyzer Small Laser [Rating: 8] Favorites ----------- Power Ion Engine Engine Ion Engine Propulsion Wheel Wheel Wheel Hover Unit Hover Unit Utility Seismic Analyzer Device Improved Terrain Scanner Storage High-capacity Storage Unit Processor Seismic Analyzer Weapon Small Laser Energy Gun Small Laser Energy Cannon Beam Cannon Ballistic Cannon Light Cannon Build | -11 -10 -10 ------- Run | Scr Mat Min Slots Evolved . | . . . Power . | . . . Propulsion . | . . . Utility . | . . . Weapon . | . . . Parts Attached 28 | 9 10 9 Power 4 | 2 2 . Engine 4 | 2 2 . Core . | . . . Reactor . | . . . Propulsion 8 | 2 1 5 Treads . | . . . Leg . | . . . Wheel 7 | 2 1 4 Hover 1 | . . 1 Flight . | . . . Utility 7 | 3 1 3 Device 3 | 1 . 2 Storage 2 | 1 1 . Processor 2 | 1 . 1 Hackware . | . . . Protection . | . . . Artifact . | . . . Weapon 9 | 2 6 1 Energy Gun 5 | 2 2 1 Energy Cannon 1 | . 1 . Ballistic Gun . | . . . Ballistic Cannon 3 | . 3 . Launcher . | . . . Special Weapon . | . . . Impact Weapon . | . . . Slashing Weapon . | . . . Piercing Weapon . | . . . Special Melee Weapon . | . . . Unidentified Prototypes . | . . . Parts Lost 11 | . 9 2 Power 2 | . 2 . Propulsion 3 | . 2 1 Utility . | . . . Weapon 6 | . 5 1 Highest Loss Streak 5 | . 5 1 Average Slot Usage (%) 84 | . 97 73 Engine 13 | . 13 14 Wheel 20 | . 27 13 Hover 3 | . . 6 Device 10 | . 7 14 Storage 3 | . 6 . Processor 14 | . 14 14 Energy Gun 12 | . 15 9 Ballistic Cannon 4 | . 8 . Naked Turns . | . . . Heaviest Build 43 | 13 43 7 Greatest Support 20 | 20 20 20 Greatest Overweight (x) 12 | 1 12 2 Average Overweight (x) . | . . . Largest Inventory Capacity 12 | 6 12 12 Average Capacity 5 | 4 7 4 Most Carried 6 | 4 6 4 Average Carried 4 | 1 4 3 Final Capacity 12 | 4 12 4 Final Carried 4 | 4 4 4 Class Distribution -------------------- 76% | Mutant 23% | Scavenger-Mutant Dominant Class ---------------- Mutant | -10/Materials Mutant | -10/Mines Resources | -11 -10 -10 ----------- Run | Scr Mat Min Matter Collected 582 | 199 293 90 Remotely . | . . . Salvage Created 758 | 121 508 129 Parts 43 | 7 26 10 Haulers Intercepted 1 | . 1 . Recyclers Shooed 1 | 1 . . Parts Field Recycled . | . . . Retrieved Matter . | . . . Parts Self-Destructed . | . . . Prevented . | . . . Kills | -11 -10 -10 ------- Run | Scr Mat Min Combat Hostiles Destroyed 9 | . 8 1 Guns 2 | . 2 . Cannons 6 | . 6 . AOE 1 | . . 1 Classes Destroyed 7 | 2 4 1 Worker 1 | . 1 . Builder 1 | . . 1 Tunneler 2 | 1 . 1 Hauler 1 | . 1 . Recycler 3 | 1 1 1 Watcher 1 | . 1 . Grunt 9 | . 8 1 Best Kill Streak 5 | 2 5 3 Combat Bots Only 4 | . 4 1 Max Kills in Single Turn 2 | 1 2 1 Gunslinging . | . . . Exploded 1 | . . 1 Melee . | . . . Uniques/NPCs Destroyed . | . . . Combat | -11 -10 -10 -------- Run | Scr Mat Min Damage Taken 977 | . 806 171 Core 257 | . 185 72 Absorbed by Shields . | . . . Core Remaining (%) 100 | 100 . . Volleys Fired 52 | 3 34 15 Largest 2 | 2 2 1 Hottest 110 | 90 110 40 Shots Fired 87 | 6 66 15 Gun 44 | 6 23 15 Cannon 43 | . 43 . Launcher . | . . . Special . | . . . Kinetic 34 | . 34 . Thermal 40 | 3 22 15 Explosive . | . . . Electromagnetic 13 | 3 10 . Robot Hit Streak 8 | 4 8 5 Robot Miss Streak 3 | . 3 2 Penetration Max . | . . . Secondary Targets . | . . . Shots Hit Robots 53 | 4 38 11 Core Hits 25 | 3 16 6 Critical Hits . | . . . Critical Kills . | . . . Critical Parts Destroyed . | . . . Melee Attacks . | . . . Impact . | . . . Slashing . | . . . Piercing . | . . . Sneak Attacks . | . . . Combat Hostiles . | . . . Follow-up Attacks . | . . . Damage Inflicted 762 | 51 601 110 Guns 383 | 51 222 110 Cannons 379 | . 379 . Explosions . | . . . Melee . | . . . Ramming . | . . . Kinetic 271 | . 271 . Thermal 343 | 13 220 110 Explosive . | . . . Electromagnetic 148 | 38 110 . Impact . | . . . Slashing . | . . . Piercing . | . . . Highest Corruption 1 | . 1 1 Average Corruption 1 | . 1 1 Corruption Purged . | . . . Effects 6 | . 3 3 Message Errors 1 | . 1 . Energy Discharges 1 | . . 1 Data Loss (minor) 2 | . . 2 Targeting Errors 2 | . 2 . Overload Shots . | . . . Overflow Damage . | . . . Projectiles . | . . . Explosions . | . . . Melee . | . . . Knockbacks 1 | . 1 . Impact . | . . . Kinetic 1 | . 1 . Secondary . | . . . Self-Inflicted Damage . | . . . Shots . | . . . Rammed . | . . . Targets Rammed . | . . . Kicked . | . . . Crushed . | . . . Highest Temperature 237 | 60 237 35 Average Temperature 63 | 28 76 13 Received Heat Transfer 318 | . 252 66 Siege Activations . | . . . Robots Corrupted . | . . . Combat Hostiles . | . . . Parts Fried . | . . . Impact Corruptions . | . . . Robots Melted . | . . . Combat Hostiles . | . . . Parts Melted 4 | . 4 . Heat Transferred 842 | 37 555 250 Parts Sabotaged . | . . . Parts Stolen . | . . . Parts Stripped . | . . . Power Chain Reactions . | . . . Missiles Intercepted . | . . . Alert | -11 -10 -10 ------- Run | Scr Mat Min Peak Influence 177 | 10 177 96 Initial 16 | . 6 16 Average 43 | 5 47 44 Maximum Alert Level . | . . . Low Security (%) 100 | 100 100 100 Level 1 . | . . . Level 2 . | . . . Level 3 . | . . . Level 4 . | . . . Level 5 . | . . . High Security . | . . . Max Security . | . . . Squads Dispatched 2 | . 2 . Investigation 2 | . 2 . Extermination . | . . . Reinforcement . | . . . Assault . | . . . Garrison . | . . . Intercept . | . . . Construction Impeded . | . . . Haulers Reinforced . | . . . Stealth | -11 -10 -10 --------- Run | Scr Mat Min Distress Signals 3 | . 3 . Communications Jammed . | . . . Distress Signals . | . . . Times Spotted 31 | . 18 13 Peak Tracking Total 5 | . 5 5 Tactical Retreats 8 | . 1 7 Traps | -11 -10 -10 ------- Run | Scr Mat Min Traps Triggered . | . . . Indirectly . | . . . Trap Hack Attempts . | . . . Triggered . | . . . Disarmed . | . . . Reprogrammed . | . . . Reused . | . . . Traps Extracted . | . . . Installed . | . . . Triggered 2 | . 1 1 Machines | -11 -10 -10 ---------- Run | Scr Mat Min Machines Disabled 1 | . 1 . Max in Single Turn 1 | . 1 . Machines Sabotaged . | . . . Garrisons Compromised . | . . . Overloaded Fab Kills . | . . . Fab Network Shutdowns . | . . . Hacking | -11 -10 -10 --------- Run | Scr Mat Min Machines Accessed 3 | . 3 . Terminals 3 | . 3 . Fabricators . | . . . Repair Stations . | . . . Recycling Units . | . . . Scanalyzers . | . . . Garrison Access . | . . . Total Hacks 9 | . 9 . Successful 2 | . 2 . Failed 7 | . 7 . Catastrophic 1 | . 1 . Database Lockouts . | . . . Manual 3 | . 3 . Terminals 9 | . 9 . Fabricators . | . . . Repair Stations . | . . . Recycling Units . | . . . Scanalyzers . | . . . Garrison Access . | . . . Terminal Hacks 2 | . 2 . Record 1 | . 1 . Level Access Points 1 | . 1 . Fabricator Hacks . | . . . Repair Station Hacks . | . . . Recycling Unit Hacks . | . . . Scanalyzer . | . . . Garrison Access Hacks . | . . . Unauthorized Hacks . | . . . Terminals . | . . . Fabricators . | . . . Repair Stations . | . . . Recycling Units . | . . . Scanalyzers . | . . . Garrison Access . | . . . Data Cores Recovered . | . . . Used . | . . . Hacking Detections 3 | . 3 . Full Trace Events 2 | . 2 . Feedback Events 1 | . 1 . Corruption 1 | . 1 . Feedback Blocked . | . . . Robot Schematics Acquired . | . . . Robots Built . | . . . Matter . | . . . Time . | . . . Total Robot Build Rating . | . . . Part Schematics Acquired . | . . . Parts Built . | . . . Matter . | . . . Time . | . . . Total Part Build Rating . | . . . Parts Repaired . | . . . Time . | . . . Parts Recycled . | . . . Recycled Matter . | . . . Retrieved Matter . | . . . Retrieved Components . | . . . Parts Scanalyzed . | . . . Part Schematics Acquired . | . . . Parts Damaged . | . . . Bothacking | -11 -10 -10 ------------ Run | Scr Mat Min Used RIF Installer . | . . . Robots Hacked . | . . . Non-combat . | . . . Combat . | . . . Robot Hacks Applied . | . . . Relay Couplers Released . | . . . Robots Rewired . | . . . Allies Hacked . | . . . Hacks Repelled . | . . . Allies | -11 -10 -10 -------- Run | Scr Mat Min Total Allies . | . . . Largest Group . | . . . Highest-Rated Group . | . . . Highest-Rated Ally . | . . . Total Orders . | . . . Ally Attacks . | . . . Total Damage . | . . . Kills . | . . . Allies Corrupted . | . . . Allies Melted . | . . . Intel | -11 -10 -10 ------- Run | Scr Mat Min Robot Analysis Total . | . . . Derelict Logs Recovered 2 | . . 2 Drone Launches . | . . . Drone Recoveries . | . . . Exploration | -11 -10 -10 ------------- Run | Scr Mat Min Turns Passed 1187 | 66 534 587 Spaces Moved 939 | 46 294 599 Core 7 | 5 1 1 Treads . | . . . Legs . | . . . Wheels 659 | 41 293 325 Hover 273 | . . 273 Flight . | . . . Fastest Speed 50 | 50 80 60 Average Speed 81 | 78 90 78 Slowest Speed 650 | 100 650 150 Overloaded Moves . | . . . Propulsion Burnouts . | . . . Robots Hopped . | . . . Cave-ins Triggered . | . . . Exploration Rate (%) 41 | 4 45 75 Regions Visited 2 Branch Regions 1 Pre-discovered Areas 2 | . . 2 Known Exits Taken . | . . . Unknown Exits Taken 2 | 1 1 . Scrap Searched 2 | . . 2 Spaces Dug . | . . . Terrain Destroyed . | . . . Melee . | . . . Projectile . | . . . AOE . | . . . Terrain Rammed . | . . . Walls Destroyed . | . . . Machines Disabled . | . . . Actions | -11 -10 -10 --------- Run | Scr Mat Min Total 1276 | 68 502 706 Wait 222 | . 153 69 Move 937 | 45 293 599 Hop . | . . . Pick Up 25 | 11 7 7 Fast Attach 3 | . 2 1 Attach 17 | 7 5 5 Detach 2 | . 1 1 Swap 8 | 2 3 3 Drop 10 | . 4 6 Fire 52 | 3 34 15 Melee . | . . . Ram . | . . . Kick . | . . . Crush . | . . . Escape Stasis . | . . . Rewire . | . . . Trap . | . . . Miscellaneous . | . . . Route ------- -11/Scrapyard -10/Materials (discovered 4 exits: *Mat x3 / [*Min]) -10/Mines History --------- Turn | Location | Event 2 | -11/Scrapyard | Met Revision 17 2 | -11/Scrapyard | Discovered new exit (range 16) 67 | -11/Scrapyard | Entered Materials 85 | -10/Materials | Identified exit to Materials 301 | -10/Materials | Discovered new exit (range 13) 338 | -10/Materials | Build established: Mutant 548 | -10/Materials | Core integrity fell below 50% 601 | -10/Materials | Entered Mines 632 | -10/Mines | Lost 5 parts (1p2n2w) 721 | -10/Mines | Learned location of Zion (-7) 978 | -10/Mines | Core integrity fell below 20% 1188 | -10/Mines | Destroyed by G-34 Mercenary with Small Laser Last Messages --------------- 00817_ Acquired 10 matter. 00819_ Discarded Seismic Analyzer. 00821_ Acquired 6 matter. 00823_ Dropped Wheel. 00824_ Acquired Wheel. 00830_ R-06 Scavenger destroyed. 00836_ Acquired 4 matter. 00886_ Hover Unit destroyed. 00906_ K-01 Serf cleans the Pressure Siphon. 00910_ Acquired Wheel. 00917_ Acquired Com. Wheel. 00918_ Dropped Wheel. 00920_ Acquired 30 matter. 00960_ K-01 Serf collects debris. 01034_ U-05 Engineer lays Concrete. 01036_ U-05 Engineer builds a Wall. 01053_ U-05 Engineer lays Concrete. 01088_ Acquired derelict log, extracted data. World map updated: -10/Materials. 01184_ Sml. Laser destroyed. Map ----- +----------------------------------------------------+ | ##### ???#???????????????????????????????? | | ## ### #?#???????#???#??????????????????????????? | | ?# #?# #???????? ????????????????#????????????? | | ## #?# #? ?? ##?????????????????????????????????? | | ## ??# ## ? ??#?????????????????????????????????? | | ?# ?? ? ????#??????????????????#??????????????? | | ## ? ?? ?? ???????????????????#??????????????? | | ####?#?#?? ??????????????????????????????????????? | | ?###?#???? ??????????????????????????????????????? | | ?#??##??#??????????????????????????? #???????????? | | ##???#??##??????????????????????? ?? #???????#???? | | #?????##?? ?????????#???????????### #######?#???? | | ##?#??#??# #????????????????#???# #??????? | | #?#??#?#?# #????????#????##???#?#""" #??##??? | | ##?##????# ? ?????#???#???????#""" #????#?? | | #????#???? #???#?#?????#???#????#""" #??????? | | ###????### ???# ?????????????#?# #??????? | | #??#??#?# ???# ???#?#??##?????# #??????? | | ##?#?##?# ????# ########????#??## #######???##?? | | ##??##### ???## ## ##????????# ##?##????????? | | ###???## ?### #????##### #????????????? | | ###?### #????? #????# #???????????## | | ???## #??#???# ##??## #????#???????? | | ??## ##??????# ##???# #####???????##??? | | ??# #####?## ##??# #????????#??????? | | ### ### @##### #???????????????? | | #?# g #????????#??????? | | #?# g #????#????????#?? | | ## #### ##########???#???????????? | | # ??#?### ######??????#?##?#?#?#???????? | | ??#???# ##?????#??#?#?????#???##??????? | | ??? ??#?### ##??#?????#?##?#?#?????????????? | | ? ??#??#### #??##?#?????#????#?#???????????? | | # ?####??#### ##???##??????#????#???#?#?#????? | | ??#?######???## #####?##??###???#??#?#???#??#??? | | ??###?###??##?# #?#??##?#?#??#?##?????????#? | | ??#?####??#?### ## ##?#?##?#?#?##?????##??????? | | #??##?######??# ### #?###?##??????#?????#??????? | | #?#?####?#?#?## ##?# #??###????????#??#?#??????#? | | #?##??#???##??# ##?# #?#???##?#???##?#??????????? | | ####??#?#?##?## #??# ##?#???##?????????????????#? | | ###?###???##?# #??# ##########?#??###???##???#?? | | ###?##?????## ##?# ##?### ####?#??#???????#?? | | #######?#### #### ##### ##?#????????###### | | ######?# #?#?????#??#?## # | | ######## ## ##?????????### | | ############### ##??##?##### | | ###########?#?#?????#??## ####### | | #####??#??###??#??#?#??#?## | | ##??#?######?#?##?##??????# ####### | +----------------------------------------------------+ Best States ------------- Heat Dissipation 25 Energy Generation 10 Energy Capacity 250 Matter Stores 300 Matter Capacity 300 Sight Range 16 Terrain Scan Range 16 Terrain Scan Density 60 Evasion (%) 53 Item Schematics ----------------- None Robot Schematics ------------------ None Fabricated ------------ Nothing Alien Tech Used ----------------- None Achievements -------------- None Challenges ------------ None Game ------ Seed DefenseLatentExpander Manual? 0 Play Time 00:18:07 Cumulative 39.6 hours Start 2021.10.26 @ 20:37:38 End 2021.10.26 @ 20:53:07 Sessions 1 Manual Loads 0 Difficulty Rogue Special Mode None Game No. 49 Rogue 49 Adventurer 0 Explorer 0 Win Type - Total 0 Types 0/0/0/0/0/0/0/0/0 Lore% 24 Gallery% 33 Achievement% 24 Wizard Run 0 Options --------- ASCII 0 Keyboard 0 Movement Mouse Keybinds 0 Fullscreen 1 Font 18/SmallcapsGlow Map View 76x50 Tactical HUD 1 Map Filters NONE Filters NONE Steam 1 RUN: 663c9df7-b90d-4d96-a444-6aa671675751